[Event "Titled Tuesday Blitz May 30 Late 2023"]
[White "Halkias, Stelios"]
[Black "Kourkoulos-Arditis, Stamatis"]
[WhiteFideId "4201809"]
[BlackFideId "4221990"]
[WhiteElo "2451"]
[BlackElo "2400"]
[Result "1-0"]
[Round "10"]
[TimeControl "180+2"]
[Date "2023.05.31"]
[WhiteClock "0:00:07"]
[BlackClock "0:00:02"]

1. d4 {[%clk 0:03:00]}  c5 {[%clk 0:02:54]} 2. d5 {[%clk 0:03:00]}  Nf6 {[%clk 0:02:54]} 3. Nc3 {[%clk 0:02:59]}  g6 {[%clk 0:02:54]} 4. e4 {[%clk 0:02:59]}  d6 {[%clk 0:02:54]} 5. Nf3 {[%clk 0:02:59]}  Bg7 {[%clk 0:02:54]} 6. Be2 {[%clk 0:02:59]}  O-O {[%clk 0:02:53]} 7. O-O {[%clk 0:02:58]}  e6 {[%clk 0:02:53]} 8. dxe6 {[%clk 0:02:51]}  Bxe6 {[%clk 0:02:54]} 9. Bf4 {[%clk 0:02:51]}  d5 {[%clk 0:02:52]} 10. exd5 {[%clk 0:02:35]}  Nxd5 {[%clk 0:02:50]} 11. Nxd5 {[%clk 0:02:35]}  Qxd5 {[%clk 0:02:39]} 12. c3 {[%clk 0:02:30]}  Nc6 {[%clk 0:02:39]} 13. Qa4 {[%clk 0:02:12]}  Rad8 {[%clk 0:02:31]} 14. Rfd1 {[%clk 0:02:06]}  Qf5 {[%clk 0:02:27]} 15. Bd6 {[%clk 0:01:29]}  Rfe8 {[%clk 0:02:12]} 16. Bd3 {[%clk 0:01:27]}  Qh5 {[%clk 0:02:09]} 17. Be4 {[%clk 0:01:27]}  Bd7 {[%clk 0:01:32]} 18. Qc4 {[%clk 0:01:03]}  b5 {[%clk 0:01:07]} 19. Qd5 {[%clk 0:00:57]}  Qg4 {[%clk 0:00:38]} 20. Ng5 {[%clk 0:00:47]}  Be6 {[%clk 0:00:22]} 21. Nxe6 {[%clk 0:00:40]}  Qxe6 {[%clk 0:00:22]} 22. Qxc6 {[%clk 0:00:32]}  Qxe4 {[%clk 0:00:22]} 23. Qxe4 {[%clk 0:00:32]}  Rxe4 {[%clk 0:00:23]} 24. Bxc5 {[%clk 0:00:32]}  Rde8 {[%clk 0:00:17]} 25. Kf1 {[%clk 0:00:26]}  a6 {[%clk 0:00:14]} 26. Re1 {[%clk 0:00:26]}  h5 {[%clk 0:00:13]} 27. Rxe4 {[%clk 0:00:24]}  Rxe4 {[%clk 0:00:14]} 28. Rd1 {[%clk 0:00:24]}  Rc4 {[%clk 0:00:08]} 29. Bd4 {[%clk 0:00:24]}  b4 {[%clk 0:00:07]} 30. Bxg7 {[%clk 0:00:22]}  Kxg7 {[%clk 0:00:08]} 31. Rd4 {[%clk 0:00:20]}  Rxd4 {[%clk 0:00:03]} 32. cxd4 {[%clk 0:00:20]}  Kf6 {[%clk 0:00:04]} 33. Ke2 {[%clk 0:00:20]}  Ke6 {[%clk 0:00:04]} 34. Kd3 {[%clk 0:00:18]}  Kd5 {[%clk 0:00:05]} 35. b3 {[%clk 0:00:14]}  g5 {[%clk 0:00:05]} 36. h3 {[%clk 0:00:11]}  h4 {[%clk 0:00:06]} 37. Ke3 {[%clk 0:00:11]}  f6 {[%clk 0:00:04]} 38. f3 {[%clk 0:00:08]}  f5 {[%clk 0:00:04]} 39. f4 {[%clk 0:00:07]}  g4 {[%clk 0:00:04]} 40. hxg4 {[%clk 0:00:07]}  fxg4 {[%clk 0:00:05]} 41. f5 {[%clk 0:00:07]}  h3 {[%clk 0:00:01]} 42. gxh3 {[%clk 0:00:06]}  gxh3 {[%clk 0:00:02]} 43. Kf3 {[%clk 0:00:07]} 1-0


[Site "https://www.chess.com"]

[Event "Titled Tuesday Blitz May 30 Late 2023"]
[White "Rastbod, Ali"]
[Black "Martic, Ivan"]
[WhiteFideId "12567477"]
[BlackFideId "929301"]
[WhiteElo "2274"]
[BlackElo "2360"]
[Result "0-1"]
[Round "10"]
[TimeControl "180+2"]
[Date "2023.05.31"]
[WhiteClock "0:00:04"]
[BlackClock "0:00:07"]

1. d4 {[%clk 0:03:00]}  Nf6 {[%clk 0:02:59]} 2. Nf3 {[%clk 0:03:00]}  g6 {[%clk 0:02:59]} 3. Bg5 {[%clk 0:02:59]}  Bg7 {[%clk 0:03:00]} 4. c3 {[%clk 0:02:59]}  O-O {[%clk 0:02:59]} 5. Nbd2 {[%clk 0:03:00]}  h6 {[%clk 0:02:58]} 6. Bh4 {[%clk 0:02:59]}  d6 {[%clk 0:02:57]} 7. e4 {[%clk 0:02:58]}  c5 {[%clk 0:02:57]} 8. dxc5 {[%clk 0:02:57]}  dxc5 {[%clk 0:02:58]} 9. Bc4 {[%clk 0:02:56]}  Nc6 {[%clk 0:02:46]} 10. O-O {[%clk 0:02:56]}  g5 {[%clk 0:02:39]} 11. Bg3 {[%clk 0:02:54]}  Nh5 {[%clk 0:02:40]} 12. Re1 {[%clk 0:02:54]}  Nxg3 {[%clk 0:02:35]} 13. hxg3 {[%clk 0:02:55]}  Qc7 {[%clk 0:02:31]} 14. Qe2 {[%clk 0:02:48]}  a6 {[%clk 0:02:29]} 15. a4 {[%clk 0:02:45]}  Bg4 {[%clk 0:02:25]} 16. Qe3 {[%clk 0:02:45]}  Na5 {[%clk 0:02:17]} 17. Bd5 {[%clk 0:02:35]}  e6 {[%clk 0:02:14]} 18. Ba2 {[%clk 0:02:35]}  c4 {[%clk 0:02:04]} 19. e5 {[%clk 0:02:32]}  Bf5 {[%clk 0:01:59]} 20. Nd4 {[%clk 0:02:27]}  Bd3 {[%clk 0:01:53]} 21. f4 {[%clk 0:02:26]}  gxf4 {[%clk 0:01:41]} 22. gxf4 {[%clk 0:02:27]}  Qb6 {[%clk 0:01:39]} 23. b4 {[%clk 0:01:36]}  cxb3 {[%clk 0:01:33]} 24. Bxb3 {[%clk 0:01:34]}  Nxb3 {[%clk 0:01:32]} 25. N4xb3 {[%clk 0:01:31]}  Qxe3+ {[%clk 0:01:27]} 26. Rxe3 {[%clk 0:01:32]}  Rfd8 {[%clk 0:01:25]} 27. Nc5 {[%clk 0:00:57]}  Bg6 {[%clk 0:01:21]} 28. Nc4 {[%clk 0:00:57]}  Rdc8 {[%clk 0:01:17]} 29. Nb6 {[%clk 0:00:46]}  Rxc5 {[%clk 0:01:16]} 30. Nxa8 {[%clk 0:00:47]}  Bf8 {[%clk 0:01:16]} 31. Nb6 {[%clk 0:00:31]}  Rc7 {[%clk 0:01:05]} 32. a5 {[%clk 0:00:18]}  Bc5 {[%clk 0:01:04]} 33. Kf2 {[%clk 0:00:17]}  Bxe3+ {[%clk 0:01:04]} 34. Kxe3 {[%clk 0:00:18]}  Rxc3+ {[%clk 0:01:05]} 35. Kf2 {[%clk 0:00:17]}  Rc2+ {[%clk 0:01:03]} 36. Kf3 {[%clk 0:00:15]}  Rc3+ {[%clk 0:01:01]} 37. Kf2 {[%clk 0:00:16]}  Be4 {[%clk 0:00:59]} 38. Rd1 {[%clk 0:00:14]}  Rc2+ {[%clk 0:00:51]} 39. Ke3 {[%clk 0:00:14]}  Bxg2 {[%clk 0:00:50]} 40. Nd7 {[%clk 0:00:10]}  Kg7 {[%clk 0:00:38]} 41. Nf6 {[%clk 0:00:11]}  Ra2 {[%clk 0:00:28]} 42. Rd8 {[%clk 0:00:06]}  Kg6 {[%clk 0:00:27]} 43. Rg8+ {[%clk 0:00:02]}  Kf5 {[%clk 0:00:27]} 44. Rh8 {[%clk 0:00:03]}  Rxa5 {[%clk 0:00:18]} 45. Rxh6 {[%clk 0:00:03]}  Ra3+ {[%clk 0:00:17]} 46. Kf2 {[%clk 0:00:04]}  Ra2+ {[%clk 0:00:16]} 47. Kg3 {[%clk 0:00:04]}  Bf1 {[%clk 0:00:13]} 48. Rh5+ {[%clk 0:00:04]}  Kg6 {[%clk 0:00:13]} 49. Rg5+ {[%clk 0:00:04]}  Kh6 {[%clk 0:00:13]} 50. Ng8+ {[%clk 0:00:04]}  Kh7 {[%clk 0:00:13]} 51. Nf6+ {[%clk 0:00:04]}  Kh6 {[%clk 0:00:13]} 52. Kf3 {[%clk 0:00:05]}  Be2+ {[%clk 0:00:10]} 53. Ke3 {[%clk 0:00:05]}  a5 {[%clk 0:00:09]} 54. Ng8+ {[%clk 0:00:05]}  Kh7 {[%clk 0:00:10]} 55. Nf6+ {[%clk 0:00:06]}  Kh6 {[%clk 0:00:10]} 56. Rg2 {[%clk 0:00:06]}  a4 {[%clk 0:00:08]} 57. Ne4 {[%clk 0:00:03]}  a3 {[%clk 0:00:07]} 58. Rxe2 {[%clk 0:00:04]}  Rxe2+ {[%clk 0:00:06]} 59. Kxe2 {[%clk 0:00:04]}  a2 {[%clk 0:00:07]} 0-1


[Site "https://www.chess.com"]

[Event "Titled Tuesday Blitz May 30 Late 2023"]
[White "Deac, Bogdan-Daniel"]
[Black "Domingo Nunez, Ruben"]
[WhiteFideId "1226380"]
[BlackFideId "22245570"]
[WhiteElo "2649"]
[BlackElo "2404"]
[Result "1-0"]
[Round "10"]
[TimeControl "180+2"]
[Date "2023.05.31"]
[WhiteClock "0:01:17"]
[BlackClock "0:00:59"]

1. a4 {[%clk 0:03:00]}  g6 {[%clk 0:02:56]} 2. h4 {[%clk 0:02:58]}  Bg7 {[%clk 0:02:57]} 3. h5 {[%clk 0:02:58]}  d5 {[%clk 0:02:58]} 4. d4 {[%clk 0:02:58]}  Nc6 {[%clk 0:02:58]} 5. c3 {[%clk 0:02:57]}  e5 {[%clk 0:02:58]} 6. h6 {[%clk 0:02:57]}  Bf6 {[%clk 0:02:59]} 7. e3 {[%clk 0:02:49]}  e4 {[%clk 0:02:59]} 8. c4 {[%clk 0:02:49]}  Nge7 {[%clk 0:02:55]} 9. Nc3 {[%clk 0:02:47]}  O-O {[%clk 0:02:34]} 10. cxd5 {[%clk 0:02:31]}  Nxd5 {[%clk 0:02:35]} 11. Nxe4 {[%clk 0:02:32]}  Bxd4 {[%clk 0:02:35]} 12. Bc4 {[%clk 0:02:31]}  Nb6 {[%clk 0:02:25]} 13. exd4 {[%clk 0:02:30]}  Nxc4 {[%clk 0:02:24]} 14. Ne2 {[%clk 0:02:27]}  Bf5 {[%clk 0:02:20]} 15. N4g3 {[%clk 0:02:04]}  Bg4 {[%clk 0:02:06]} 16. d5 {[%clk 0:01:52]}  Nb4 {[%clk 0:01:44]} 17. Qb3 {[%clk 0:01:52]}  Qxd5 {[%clk 0:01:27]} 18. Qxb4 {[%clk 0:01:50]}  Rfe8 {[%clk 0:01:27]} 19. Qc3 {[%clk 0:01:34]}  Ne5 {[%clk 0:01:03]} 20. O-O {[%clk 0:01:28]}  f6 {[%clk 0:01:02]} 21. Nf4 {[%clk 0:01:24]}  Qf7 {[%clk 0:01:01]} 22. Be3 {[%clk 0:01:22]}  g5 {[%clk 0:01:01]} 23. Nd3 {[%clk 0:01:20]}  Nc4 {[%clk 0:01:02]} 24. Bd4 {[%clk 0:01:19]}  Rf8 {[%clk 0:00:59]} 25. Ne4 {[%clk 0:01:17]} 1-0


[Site "https://www.chess.com"]

[Event "Titled Tuesday Blitz May 30 Late 2023"]
[White "Saveliev, Alexei"]
[Black "Zhigalko, Sergei"]
[WhiteFideId "24128546"]
[BlackFideId "13502956"]
[WhiteElo "2271"]
[BlackElo "2626"]
[Result "0-1"]
[Round "10"]
[TimeControl "180+2"]
[Date "2023.05.31"]
[WhiteClock "0:00:39"]
[BlackClock "0:00:37"]

1. c4 {[%clk 0:03:00]}  e5 {[%clk 0:02:59]} 2. Nc3 {[%clk 0:03:01]}  Nf6 {[%clk 0:03:00]} 3. Nf3 {[%clk 0:03:01]}  Nc6 {[%clk 0:03:00]} 4. e3 {[%clk 0:03:02]}  Bb4 {[%clk 0:02:59]} 5. Qc2 {[%clk 0:03:02]}  d6 {[%clk 0:02:58]} 6. Nd5 {[%clk 0:03:00]}  Ba5 {[%clk 0:02:58]} 7. a3 {[%clk 0:03:00]}  Nxd5 {[%clk 0:02:48]} 8. cxd5 {[%clk 0:03:00]}  Ne7 {[%clk 0:02:48]} 9. b4 {[%clk 0:02:46]}  Bb6 {[%clk 0:02:48]} 10. Bc4 {[%clk 0:02:46]}  O-O {[%clk 0:02:45]} 11. Bb2 {[%clk 0:02:46]}  Bf5 {[%clk 0:02:40]} 12. Qb3 {[%clk 0:02:43]}  Qd7 {[%clk 0:02:28]} 13. h3 {[%clk 0:02:22]}  a5 {[%clk 0:02:13]} 14. Nh4 {[%clk 0:02:10]}  Be4 {[%clk 0:01:22]} 15. f3 {[%clk 0:01:56]}  Ng6 {[%clk 0:01:15]} 16. fxe4 {[%clk 0:01:26]}  Nxh4 {[%clk 0:01:15]} 17. O-O {[%clk 0:01:27]}  axb4 {[%clk 0:01:08]} 18. axb4 {[%clk 0:01:28]}  Rxa1 {[%clk 0:01:08]} 19. Bxa1 {[%clk 0:01:27]}  f5 {[%clk 0:01:06]} 20. Qc2 {[%clk 0:01:11]}  f4 {[%clk 0:01:03]} 21. Be2 {[%clk 0:00:56]}  fxe3 {[%clk 0:00:52]} 22. Rxf8+ {[%clk 0:00:49]}  Kxf8 {[%clk 0:00:53]} 23. dxe3 {[%clk 0:00:45]}  Bxe3+ {[%clk 0:00:54]} 24. Kh1 {[%clk 0:00:46]}  Qf7 {[%clk 0:00:48]} 25. Bg4 {[%clk 0:00:44]}  Qf1+ {[%clk 0:00:45]} 26. Kh2 {[%clk 0:00:42]}  Qg1+ {[%clk 0:00:35]} 27. Kg3 {[%clk 0:00:41]}  Qe1+ {[%clk 0:00:36]} 28. Kh2 {[%clk 0:00:40]}  Bf4+ {[%clk 0:00:36]} 29. g3 {[%clk 0:00:39]}  Bxg3# {[%clk 0:00:37]} 0-1


[Site "https://www.chess.com"]

[Event "Titled Tuesday Blitz May 30 Late 2023"]
[White "Bjelobrk, Igor"]
[Black "Panesar Vedant"]
[WhiteFideId "4300726"]
[BlackFideId "35033018"]
[WhiteElo "2319"]
[BlackElo "2347"]
[Result "1-0"]
[Round "10"]
[TimeControl "180+2"]
[Date "2023.05.31"]
[WhiteClock "0:00:13"]
[BlackClock "0:00:10"]

1. d4 {[%clk 0:02:56]}  Nf6 {[%clk 0:02:59]} 2. c4 {[%clk 0:02:55]}  g6 {[%clk 0:02:57]} 3. Nc3 {[%clk 0:02:54]}  Bg7 {[%clk 0:02:55]} 4. e4 {[%clk 0:02:54]}  d6 {[%clk 0:02:55]} 5. Nf3 {[%clk 0:02:49]}  O-O {[%clk 0:02:55]} 6. Be2 {[%clk 0:02:46]}  e5 {[%clk 0:02:55]} 7. d5 {[%clk 0:02:46]}  a5 {[%clk 0:02:53]} 8. Bg5 {[%clk 0:02:44]}  h6 {[%clk 0:02:51]} 9. Be3 {[%clk 0:02:44]}  Ng4 {[%clk 0:02:50]} 10. Bc1 {[%clk 0:02:44]}  f5 {[%clk 0:02:50]} 11. exf5 {[%clk 0:02:42]}  gxf5 {[%clk 0:02:51]} 12. g3 {[%clk 0:02:42]}  Na6 {[%clk 0:02:48]} 13. Nh4 {[%clk 0:02:41]}  Nf6 {[%clk 0:02:35]} 14. f4 {[%clk 0:02:40]}  Nc5 {[%clk 0:02:31]} 15. fxe5 {[%clk 0:02:37]}  dxe5 {[%clk 0:02:31]} 16. O-O {[%clk 0:02:37]}  Nfe4 {[%clk 0:02:27]} 17. Nxe4 {[%clk 0:02:20]}  Nxe4 {[%clk 0:02:28]} 18. Bd3 {[%clk 0:02:06]}  b6 {[%clk 0:01:58]} 19. Qe2 {[%clk 0:01:56]}  Nd6 {[%clk 0:01:54]} 20. Ng6 {[%clk 0:01:38]}  e4 {[%clk 0:01:45]} 21. Bc2 {[%clk 0:01:30]}  Ba6 {[%clk 0:01:43]} 22. Qh5 {[%clk 0:00:44]}  Bxc4 {[%clk 0:00:57]} 23. Bxh6 {[%clk 0:00:43]}  Bxf1 {[%clk 0:00:56]} 24. Rxf1 {[%clk 0:00:42]}  Qf6 {[%clk 0:00:49]} 25. Bg5 {[%clk 0:00:34]}  Qd4+ {[%clk 0:00:44]} 26. Kh1 {[%clk 0:00:34]}  Rae8 {[%clk 0:00:38]} 27. Nxf8 {[%clk 0:00:30]}  Rxf8 {[%clk 0:00:35]} 28. Be7 {[%clk 0:00:23]}  Qc4 {[%clk 0:00:34]} 29. Rf2 {[%clk 0:00:15]}  e3 {[%clk 0:00:32]} 30. Re2 {[%clk 0:00:14]}  Qxd5+ {[%clk 0:00:31]} 31. Kg1 {[%clk 0:00:14]}  Rf7 {[%clk 0:00:23]} 32. Bxd6 {[%clk 0:00:14]}  cxd6 {[%clk 0:00:20]} 33. Bb3 {[%clk 0:00:14]}  Qb7 {[%clk 0:00:14]} 34. Qxf5 {[%clk 0:00:10]}  Kf8 {[%clk 0:00:11]} 35. Bxf7 {[%clk 0:00:09]}  Qxf7 {[%clk 0:00:12]} 36. Qxf7+ {[%clk 0:00:09]}  Kxf7 {[%clk 0:00:13]} 37. Kg2 {[%clk 0:00:10]}  Bd4 {[%clk 0:00:13]} 38. Kf3 {[%clk 0:00:11]}  Kf6 {[%clk 0:00:12]} 39. Ke4 {[%clk 0:00:11]}  Bc5 {[%clk 0:00:11]} 40. h4 {[%clk 0:00:11]}  Ke6 {[%clk 0:00:10]} 41. Rxe3 {[%clk 0:00:11]}  d5+ {[%clk 0:00:09]} 42. Kd3+ {[%clk 0:00:11]}  Bxe3 {[%clk 0:00:10]} 43. Kxe3 {[%clk 0:00:12]}  Kf5 {[%clk 0:00:10]} 44. Kd4 {[%clk 0:00:12]}  Kg4 {[%clk 0:00:09]} 45. Kxd5 {[%clk 0:00:12]}  Kxg3 {[%clk 0:00:10]} 46. h5 {[%clk 0:00:13]} 1-0


[Site "https://www.chess.com"]

[Event "Titled Tuesday Blitz May 30 Late 2023"]
[White "Matinian, Nikita"]
[Black "Bitoon, Richard"]
[WhiteFideId "24129100"]
[BlackFideId "5201110"]
[WhiteElo "2422"]
[BlackElo "2374"]
[Result "0-1"]
[Round "10"]
[TimeControl "180+2"]
[Date "2023.05.31"]
[WhiteClock "0:00:01"]
[BlackClock "0:00:03"]

1. e4 {[%clk 0:03:00]}  e5 {[%clk 0:03:00]} 2. Nf3 {[%clk 0:03:00]}  Nc6 {[%clk 0:03:00]} 3. d4 {[%clk 0:02:59]}  exd4 {[%clk 0:03:01]} 4. Nxd4 {[%clk 0:03:00]}  Nf6 {[%clk 0:03:02]} 5. Nxc6 {[%clk 0:02:57]}  bxc6 {[%clk 0:03:03]} 6. e5 {[%clk 0:02:58]}  Qe7 {[%clk 0:03:03]} 7. Qe2 {[%clk 0:02:58]}  Nd5 {[%clk 0:03:04]} 8. h4 {[%clk 0:02:57]}  d6 {[%clk 0:03:03]} 9. exd6 {[%clk 0:02:55]}  cxd6 {[%clk 0:03:04]} 10. a3 {[%clk 0:02:35]}  Bf5 {[%clk 0:03:01]} 11. c4 {[%clk 0:02:34]}  Nb6 {[%clk 0:02:57]} 12. Nc3 {[%clk 0:02:30]}  O-O-O {[%clk 0:02:43]} 13. Be3 {[%clk 0:02:29]}  g6 {[%clk 0:02:34]} 14. g4 {[%clk 0:02:07]}  Be6 {[%clk 0:02:31]} 15. Bg2 {[%clk 0:01:52]}  Bxc4 {[%clk 0:02:16]} 16. Qf3 {[%clk 0:01:48]}  d5 {[%clk 0:02:16]} 17. O-O-O {[%clk 0:01:42]}  Bg7 {[%clk 0:02:13]} 18. Bg5 {[%clk 0:01:35]}  f6 {[%clk 0:02:09]} 19. Rhe1 {[%clk 0:01:34]}  Qf7 {[%clk 0:01:33]} 20. a4 {[%clk 0:01:31]}  Nd7 {[%clk 0:01:25]} 21. Rd4 {[%clk 0:01:26]}  Rhe8 {[%clk 0:00:57]} 22. Rxe8 {[%clk 0:01:12]}  Qxe8 {[%clk 0:00:58]} 23. Bf4 {[%clk 0:00:40]}  Nc5 {[%clk 0:00:50]} 24. Rxc4 {[%clk 0:00:32]}  dxc4 {[%clk 0:00:41]} 25. Be3 {[%clk 0:00:32]}  Nb3+ {[%clk 0:00:31]} 26. Kb1 {[%clk 0:00:32]}  f5 {[%clk 0:00:27]} 27. Nb5 {[%clk 0:00:20]}  Qe4+ {[%clk 0:00:20]} 28. Qxe4 {[%clk 0:00:18]}  fxe4 {[%clk 0:00:21]} 29. Nxa7+ {[%clk 0:00:18]}  Kb7 {[%clk 0:00:19]} 30. Bxe4 {[%clk 0:00:18]}  Nd2+ {[%clk 0:00:19]} 31. Bxd2 {[%clk 0:00:18]}  Rxd2 {[%clk 0:00:19]} 32. Nxc6 {[%clk 0:00:19]}  Rxb2+ {[%clk 0:00:19]} 33. Kc1 {[%clk 0:00:19]}  Rxf2 {[%clk 0:00:19]} 34. Ne5+ {[%clk 0:00:14]}  Ka6 {[%clk 0:00:17]} 35. Nxc4 {[%clk 0:00:14]}  Rf4 {[%clk 0:00:17]} 36. Bd3 {[%clk 0:00:15]}  Ka7 {[%clk 0:00:16]} 37. Be2 {[%clk 0:00:07]}  h5 {[%clk 0:00:12]} 38. gxh5 {[%clk 0:00:04]}  gxh5 {[%clk 0:00:13]} 39. Kc2 {[%clk 0:00:04]}  Rxh4 {[%clk 0:00:13]} 40. Kd3 {[%clk 0:00:02]}  Rd4+ {[%clk 0:00:13]} 41. Ke3 {[%clk 0:00:02]}  h4 {[%clk 0:00:13]} 42. Na3 {[%clk 0:00:01]}  Rb4 {[%clk 0:00:10]} 43. Nb5+ {[%clk 0:00:02]}  Kb6 {[%clk 0:00:10]} 44. Nd6 {[%clk 0:00:02]}  Rxa4 {[%clk 0:00:08]} 45. Nf5 {[%clk 0:00:02]}  Bf6 {[%clk 0:00:08]} 46. Bf3 {[%clk 0:00:02]}  Bg5+ {[%clk 0:00:08]} 47. Kf2 {[%clk 0:00:02]}  Rf4 {[%clk 0:00:09]} 48. Ne3 {[%clk 0:00:01]}  Kc5 {[%clk 0:00:08]} 49. Ng2 {[%clk 0:00:02]}  Ra4 {[%clk 0:00:07]} 50. Ne1 {[%clk 0:00:01]}  Kd4 {[%clk 0:00:05]} 51. Kg2 {[%clk 0:00:01]}  Ke5 {[%clk 0:00:03]} 52. Nd3+ {[%clk 0:00:01]}  Kf5 {[%clk 0:00:04]} 53. Nf2 {[%clk 0:00:01]}  Ra2 {[%clk 0:00:04]} 54. Bc6 {[%clk 0:00:01]}  Be3 {[%clk 0:00:03]} 0-1


[Site "https://www.chess.com"]

[Event "Titled Tuesday Blitz May 30 Late 2023"]
[White "Adewumi, Tanitoluwa"]
[Black "Bashirli, Nail"]
[WhiteFideId "30966396"]
[BlackFideId "13406809"]
[WhiteElo "2606"]
[BlackElo "2311"]
[Result "1-0"]
[Round "10"]
[TimeControl "180+2"]
[Date "2023.05.31"]
[WhiteClock "0:00:50"]
[BlackClock "0:00:48"]

1. e4 {[%clk 0:03:00]}  c5 {[%clk 0:02:54]} 2. Nf3 {[%clk 0:02:57]}  e6 {[%clk 0:02:51]} 3. c3 {[%clk 0:02:54]}  d5 {[%clk 0:02:49]} 4. exd5 {[%clk 0:02:55]}  exd5 {[%clk 0:02:50]} 5. d4 {[%clk 0:02:56]}  Nc6 {[%clk 0:02:50]} 6. Bb5 {[%clk 0:02:56]}  Nf6 {[%clk 0:02:49]} 7. O-O {[%clk 0:02:55]}  a6 {[%clk 0:02:49]} 8. Re1+ {[%clk 0:02:53]}  Be7 {[%clk 0:02:48]} 9. Bxc6+ {[%clk 0:02:49]}  bxc6 {[%clk 0:02:49]} 10. dxc5 {[%clk 0:02:44]}  O-O {[%clk 0:02:48]} 11. Be3 {[%clk 0:02:40]}  a5 {[%clk 0:02:45]} 12. Nbd2 {[%clk 0:02:32]}  a4 {[%clk 0:02:44]} 13. b4 {[%clk 0:02:29]}  Ba6 {[%clk 0:02:38]} 14. Nd4 {[%clk 0:02:23]}  Qc8 {[%clk 0:02:38]} 15. Qxa4 {[%clk 0:02:21]}  Bb7 {[%clk 0:02:33]} 16. Qc2 {[%clk 0:02:18]}  Re8 {[%clk 0:02:32]} 17. Bf4 {[%clk 0:02:15]}  Qg4 {[%clk 0:02:19]} 18. Qf5 {[%clk 0:02:12]}  Qh4 {[%clk 0:02:11]} 19. Bg5 {[%clk 0:02:04]}  Qh5 {[%clk 0:01:59]} 20. N2f3 {[%clk 0:01:51]}  g6 {[%clk 0:01:49]} 21. Qf4 {[%clk 0:01:45]}  Ne4 {[%clk 0:01:45]} 22. Bxe7 {[%clk 0:01:37]}  Rxe7 {[%clk 0:01:45]} 23. Re3 {[%clk 0:01:26]}  Rae8 {[%clk 0:01:31]} 24. Rae1 {[%clk 0:01:22]}  g5 {[%clk 0:01:15]} 25. Nxg5 {[%clk 0:01:05]}  Nxg5 {[%clk 0:01:16]} 26. Rxe7 {[%clk 0:01:04]}  Rxe7 {[%clk 0:01:16]} 27. Qb8+ {[%clk 0:01:05]}  Kg7 {[%clk 0:01:11]} 28. Nf5+ {[%clk 0:01:04]}  Kf6 {[%clk 0:01:08]} 29. Nxe7 {[%clk 0:00:53]}  Ba6 {[%clk 0:00:48]} 30. Qe5# {[%clk 0:00:50]} 1-0


[Site "https://www.chess.com"]

[Event "Titled Tuesday Blitz May 30 Late 2023"]
[White "Thorfinnsson, Bragi"]
[Black "Martinez Ramirez, Lennis"]
[WhiteFideId "2300958"]
[BlackFideId "3509079"]
[WhiteElo "2322"]
[BlackElo "2410"]
[Result "1-0"]
[Round "10"]
[TimeControl "180+2"]
[Date "2023.05.31"]
[WhiteClock "0:00:10"]
[BlackClock "0:00:03"]

1. d4 {[%clk 0:02:42]}  Nf6 {[%clk 0:02:58]} 2. Bf4 {[%clk 0:02:38]}  c5 {[%clk 0:02:58]} 3. d5 {[%clk 0:02:34]}  b5 {[%clk 0:02:35]} 4. f3 {[%clk 0:02:21]}  e6 {[%clk 0:02:30]} 5. dxe6 {[%clk 0:02:14]}  fxe6 {[%clk 0:02:25]} 6. e4 {[%clk 0:02:14]}  b4 {[%clk 0:02:14]} 7. Nh3 {[%clk 0:02:02]}  Nc6 {[%clk 0:02:13]} 8. a3 {[%clk 0:01:56]}  Be7 {[%clk 0:02:00]} 9. Bb5 {[%clk 0:01:33]}  Qb6 {[%clk 0:01:59]} 10. a4 {[%clk 0:01:29]}  Ba6 {[%clk 0:01:54]} 11. Bxa6 {[%clk 0:01:03]}  Qxa6 {[%clk 0:01:55]} 12. Qe2 {[%clk 0:00:55]}  Qxe2+ {[%clk 0:01:54]} 13. Kxe2 {[%clk 0:00:56]}  Nd4+ {[%clk 0:01:53]} 14. Kd2 {[%clk 0:00:56]}  d5 {[%clk 0:01:42]} 15. e5 {[%clk 0:00:43]}  Nd7 {[%clk 0:01:39]} 16. Bg3 {[%clk 0:00:40]}  g5 {[%clk 0:01:32]} 17. Re1 {[%clk 0:00:34]}  h5 {[%clk 0:01:29]} 18. Kc1 {[%clk 0:00:29]}  g4 {[%clk 0:01:19]} 19. fxg4 {[%clk 0:00:29]}  hxg4 {[%clk 0:01:19]} 20. Nf4 {[%clk 0:00:30]}  Bg5 {[%clk 0:01:18]} 21. Kd1 {[%clk 0:00:24]}  Rf8 {[%clk 0:01:05]} 22. Nd3 {[%clk 0:00:24]}  a5 {[%clk 0:00:56]} 23. Nf2 {[%clk 0:00:23]}  Nb6 {[%clk 0:00:45]} 24. b3 {[%clk 0:00:20]}  c4 {[%clk 0:00:43]} 25. Nxg4 {[%clk 0:00:20]}  cxb3 {[%clk 0:00:43]} 26. cxb3 {[%clk 0:00:21]}  Nxb3 {[%clk 0:00:43]} 27. Ra2 {[%clk 0:00:21]}  Nc4 {[%clk 0:00:43]} 28. Rf2 {[%clk 0:00:19]}  Kd7 {[%clk 0:00:40]} 29. h4 {[%clk 0:00:19]}  Be7 {[%clk 0:00:36]} 30. Nf6+ {[%clk 0:00:19]}  Kc6 {[%clk 0:00:30]} 31. h5 {[%clk 0:00:19]}  Nd4 {[%clk 0:00:26]} 32. h6 {[%clk 0:00:19]}  Nf5 {[%clk 0:00:26]} 33. Bf4 {[%clk 0:00:17]}  Bxf6 {[%clk 0:00:11]} 34. exf6 {[%clk 0:00:18]}  Rxf6 {[%clk 0:00:11]} 35. g4 {[%clk 0:00:19]}  Nfd6 {[%clk 0:00:04]} 36. g5 {[%clk 0:00:18]}  Rg6 {[%clk 0:00:04]} 37. Nd2 {[%clk 0:00:13]}  Nxd2 {[%clk 0:00:04]} 38. Kxd2 {[%clk 0:00:14]}  Ne4+ {[%clk 0:00:04]} 39. Rxe4 {[%clk 0:00:15]}  dxe4 {[%clk 0:00:05]} 40. Ke3 {[%clk 0:00:15]}  Kd5 {[%clk 0:00:05]} 41. Rd2+ {[%clk 0:00:15]}  Kc4 {[%clk 0:00:05]} 42. Kxe4 {[%clk 0:00:16]}  b3 {[%clk 0:00:05]} 43. Rd7 {[%clk 0:00:13]}  b2 {[%clk 0:00:03]} 44. Rb7 {[%clk 0:00:13]}  Kc3 {[%clk 0:00:03]} 45. Be5+ {[%clk 0:00:14]}  Kc2 {[%clk 0:00:03]} 46. Rxb2+ {[%clk 0:00:13]}  Kc1 {[%clk 0:00:04]} 47. Rg2 {[%clk 0:00:14]}  Ra7 {[%clk 0:00:03]} 48. Bf6 {[%clk 0:00:12]}  Rh7 {[%clk 0:00:03]} 49. Rg1+ {[%clk 0:00:10]} 1-0


[Site "https://www.chess.com"]